[Event "Late-Titled-Tuesday-Blitz-May-14-2024"]
[Site "Chess.com"]
[Date "2024.05.14"]
[Round "9"]
[White "MalcolmPein"]
[Black "TheBigBadChessDad"]
[Result "1-0"]
[WhiteElo "2328"]
[BlackElo "2276"]
[TimeControl "180+1"]
[EndTime "15:44:19 PDT"]
[Termination "MalcolmPein won on time"]

1. Nf3 {[%clk 0:02:53.5]} 1... c6 {[%clk 0:03:00]} 2. c4 {[%clk 0:02:52]} 2...
d5 {[%clk 0:03:00.2]} 3. e3 {[%clk 0:02:51.5]} 3... Nf6 {[%clk 0:02:59.8]} 4.
Nc3 {[%clk 0:02:49.7]} 4... e6 {[%clk 0:02:59.9]} 5. Qc2 {[%clk 0:02:47.8]} 5...
Nbd7 {[%clk 0:02:59.9]} 6. b3 {[%clk 0:02:48.1]} 6... Bd6 {[%clk 0:02:59.8]} 7.
Bb2 {[%clk 0:02:48.7]} 7... Qe7 {[%clk 0:02:59.9]} 8. Be2 {[%clk 0:02:47.2]}
8... O-O {[%clk 0:02:58.1]} 9. Rg1 {[%clk 0:02:47.1]} 9... e5 {[%clk 0:02:38.3]}
10. cxd5 {[%clk 0:02:46.3]} 10... cxd5 {[%clk 0:02:34.4]} 11. Nb5 {[%clk
0:02:45.8]} 11... e4 {[%clk 0:02:09.5]} 12. Nfd4 {[%clk 0:02:31.7]} 12... Bxh2
{[%clk 0:02:06]} 13. Rh1 {[%clk 0:02:22.8]} 13... Be5 {[%clk 0:01:59.7]} 14. f4
{[%clk 0:01:44.3]} 14... Bxd4 {[%clk 0:01:39.8]} 15. Bxd4 {[%clk 0:01:31.4]}
15... a6 {[%clk 0:01:38.8]} 16. Nc3 {[%clk 0:01:18.1]} 16... b5 {[%clk
0:01:31.6]} 17. Qb2 {[%clk 0:01:15.7]} 17... Bb7 {[%clk 0:01:29.2]} 18. g4
{[%clk 0:01:13.9]} 18... Ne8 {[%clk 0:01:16.5]} 19. Kf2 {[%clk 0:01:06]} 19...
f5 {[%clk 0:01:16.3]} 20. g5 {[%clk 0:00:59.1]} 20... g6 {[%clk 0:00:58.2]} 21.
Rh6 {[%clk 0:00:53.6]} 21... Rf7 {[%clk 0:00:57.2]} 22. Rah1 {[%clk 0:00:53.7]}
22... Nf8 {[%clk 0:00:55.5]} 23. Bh5 {[%clk 0:00:22.2]} 23... Ng7 {[%clk
0:00:46.2]} 24. Bf6 {[%clk 0:00:17.6]} 24... Rxf6 {[%clk 0:00:41.2]} 25. gxf6
{[%clk 0:00:16.9]} 25... Qxf6 {[%clk 0:00:41.3]} 26. Be2 {[%clk 0:00:14.7]}
26... d4 {[%clk 0:00:37.7]} 27. Nd1 {[%clk 0:00:11.1]} 27... dxe3+ {[%clk
0:00:37.3]} 28. dxe3 {[%clk 0:00:11.2]} 28... Qxb2 {[%clk 0:00:31.2]} 29. Nxb2
{[%clk 0:00:12.1]} 29... Rc8 {[%clk 0:00:30.2]} 30. Bd1 {[%clk 0:00:11.2]} 30...
Rc1 {[%clk 0:00:20.6]} 31. Ke1 {[%clk 0:00:09.2]} 31... Nge6 {[%clk 0:00:18.5]}
32. Kd2 {[%clk 0:00:07.4]} 32... Ra1 {[%clk 0:00:18.8]} 33. a4 {[%clk
0:00:07.1]} 33... Nc5 {[%clk 0:00:15.2]} 34. axb5 {[%clk 0:00:06.6]} 34... axb5
{[%clk 0:00:14.8]} 35. Kc3 {[%clk 0:00:06.6]} 35... Na6 {[%clk 0:00:13.7]} 36.
Be2 {[%clk 0:00:05]} 36... b4+ {[%clk 0:00:13.8]} 37. Kd4 {[%clk 0:00:03.8]}
37... Ra2 {[%clk 0:00:13.3]} 38. Bc4+ {[%clk 0:00:02.8]} 38... Kg7 {[%clk
0:00:12.6]} 39. Na4 {[%clk 0:00:03.2]} 39... Rd2+ {[%clk 0:00:10.4]} 40. Ke5
{[%clk 0:00:03.1]} 40... Nc7 {[%clk 0:00:07]} 41. R6h2 {[%clk 0:00:02.4]} 41...
Rd8 {[%clk 0:00:06.1]} 42. Rc1 {[%clk 0:00:02.2]} 42... Nd7+ {[%clk 0:00:04.1]}
43. Kd6 {[%clk 0:00:01.6]} 43... Ne8+ {[%clk 0:00:03.6]} 44. Ke7 {[%clk
0:00:01.7]} 44... Ra8 {[%clk 0:00:00.6]} 45. Kxd7 {[%clk 0:00:02]} 45... Nf6+
{[%clk 0:00:01.1]} 46. Kc7 {[%clk 0:00:02.2]} 46... Ba6 {[%clk 0:00:01.1]} 47.
Bxa6 {[%clk 0:00:01.8]} 47... Rxa6 {[%clk 0:00:02]} 48. Rc6 {[%clk 0:00:02]}
48... Ra7+ {[%clk 0:00:02.4]} 49. Kb6 {[%clk 0:00:02]} 49... Rd7 {[%clk
0:00:02.6]} 50. Rc7 {[%clk 0:00:02.8]} 50... Nd5+ {[%clk 0:00:02.5]} 51. Kc6
{[%clk 0:00:02.1]} 51... Rxc7+ {[%clk 0:00:02.6]} 52. Kxd5 {[%clk 0:00:02.5]}
52... Rc1 {[%clk 0:00:01.6]} 53. Rd2 {[%clk 0:00:01.3]} 53... Re1 {[%clk
0:00:01.3]} 54. Kc5 {[%clk 0:00:00.9]} 54... Rxe3 {[%clk 0:00:01.7]} 55. Kxb4
{[%clk 0:00:01.8]} 55... Rf3 {[%clk 0:00:01.5]} 56. Nc3 {[%clk 0:00:01.5]} 56...
Rxf4 {[%clk 0:00:02.4]} 57. Kc5 {[%clk 0:00:01.5]} 57... Rf3 {[%clk 0:00:02]}
58. Kc4 {[%clk 0:00:01.4]} 58... f4 {[%clk 0:00:01.2]} 59. b4 {[%clk 0:00:01.7]}
59... e3 {[%clk 0:00:02.1]} 60. Re2 {[%clk 0:00:01.7]} 60... Rf2 {[%clk
0:00:02.6]} 61. b5 {[%clk 0:00:00.9]} 61... Rf1 {[%clk 0:00:00.6]} 62. b6 {[%clk
0:00:00.3]} 1-0

[Event "Late-Titled-Tuesday-Blitz-May-14-2024"]
[Site "Chess.com"]
[Date "2024.05.14"]
[Round "9"]
[White "Durarbayli"]
[Black "CarlosjPineror"]
[Result "1-0"]
[WhiteElo "2948"]
[BlackElo "2746"]
[TimeControl "180+1"]
[EndTime "15:44:25 PDT"]
[Termination "Durarbayli won by resignation"]

1. e4 {[%clk 0:03:00.9]} 1... c5 {[%clk 0:02:47.6]} 2. Nf3 {[%clk 0:03:00.8]}
2... e6 {[%clk 0:02:45.7]} 3. d4 {[%clk 0:03:01.2]} 3... cxd4 {[%clk 0:02:46.2]}
4. Nxd4 {[%clk 0:03:02.1]} 4... a6 {[%clk 0:02:46.7]} 5. c4 {[%clk 0:02:58.1]}
5... Qc7 {[%clk 0:02:47.1]} 6. Nc3 {[%clk 0:02:58]} 6... Nf6 {[%clk 0:02:47.3]}
7. Be3 {[%clk 0:02:57.3]} 7... Be7 {[%clk 0:02:46.4]} 8. Be2 {[%clk 0:02:55.3]}
8... d6 {[%clk 0:02:46.3]} 9. g4 {[%clk 0:02:54.3]} 9... b6 {[%clk 0:02:45.3]}
10. g5 {[%clk 0:02:54.4]} 10... Nfd7 {[%clk 0:02:45.8]} 11. Qc2 {[%clk
0:02:45.1]} 11... Bb7 {[%clk 0:02:46]} 12. O-O-O {[%clk 0:02:44.6]} 12... Nc6
{[%clk 0:02:43.8]} 13. Kb1 {[%clk 0:02:37.5]} 13... O-O-O {[%clk 0:02:24.5]} 14.
h4 {[%clk 0:02:21.9]} 14... Kb8 {[%clk 0:02:22.4]} 15. Rc1 {[%clk 0:02:20.5]}
15... Rc8 {[%clk 0:01:43.7]} 16. Qd2 {[%clk 0:02:06.5]} 16... Qd8 {[%clk
0:01:42.8]} 17. f4 {[%clk 0:01:58.3]} 17... Nc5 {[%clk 0:01:40.1]} 18. Nxc6+
{[%clk 0:01:54.2]} 18... Bxc6 {[%clk 0:01:38.7]} 19. Bf3 {[%clk 0:01:39.5]}
19... Qc7 {[%clk 0:01:37.8]} 20. Ka1 {[%clk 0:01:32.9]} 20... Qb7 {[%clk
0:01:37.9]} 21. Rhe1 {[%clk 0:01:27.5]} 21... f5 {[%clk 0:01:34.1]} 22. gxf6
{[%clk 0:01:26.5]} 22... Bxf6 {[%clk 0:01:34.2]} 23. Qxd6+ {[%clk 0:01:20.1]}
23... Ka8 {[%clk 0:01:32.4]} 24. Bxc5 {[%clk 0:01:16.1]} 24... Rhd8 {[%clk
0:01:28.7]} 25. Qxe6 {[%clk 0:01:08.6]} 25... bxc5 {[%clk 0:01:24.1]} 26. e5
{[%clk 0:00:31.7]} 26... Bxf3 {[%clk 0:01:12.7]} 27. exf6 {[%clk 0:00:31.1]}
27... Rd2 {[%clk 0:01:13.4]} 28. Rb1 {[%clk 0:00:29.5]} 28... gxf6 {[%clk
0:01:10.8]} 29. Qxf6 {[%clk 0:00:27.1]} 29... Rc6 {[%clk 0:00:15.2]} 30. Qf8+
{[%clk 0:00:26.4]} 30... Ka7 {[%clk 0:00:15.1]} 31. Re7 {[%clk 0:00:19.1]} 31...
Rc7 {[%clk 0:00:15.5]} 32. Re5 {[%clk 0:00:17.5]} 32... Qb6 {[%clk 0:00:08]} 33.
Re7 {[%clk 0:00:16.6]} 33... Bb7 {[%clk 0:00:06.5]} 34. Rxc7 {[%clk 0:00:15.6]}
34... Qxc7 {[%clk 0:00:07.4]} 35. f5 {[%clk 0:00:15.2]} 35... Rf2 {[%clk
0:00:07.2]} 36. Re1 {[%clk 0:00:14.8]} 36... Qb6 {[%clk 0:00:06.6]} 37. Rb1
{[%clk 0:00:14.3]} 37... Qc7 {[%clk 0:00:06.6]} 38. a3 {[%clk 0:00:14.1]} 38...
Qe5 {[%clk 0:00:04.3]} 39. Na4 {[%clk 0:00:09.3]} 39... Rxf5 {[%clk 0:00:03.6]}
40. Qd8 {[%clk 0:00:09.8]} 40... Qf6 {[%clk 0:00:01.9]} 41. Qc7 {[%clk
0:00:08.7]} 41... Qc6 {[%clk 0:00:01.7]} 42. Qxh7 {[%clk 0:00:07.8]} 42... Rf2
{[%clk 0:00:01.2]} 43. Nc3 {[%clk 0:00:07.1]} 43... Rg2 {[%clk 0:00:01.9]} 44.
Qd3 {[%clk 0:00:07]} 44... Qf3 {[%clk 0:00:01.8]} 45. Qxf3 {[%clk 0:00:06.9]}
45... Bxf3 {[%clk 0:00:02.7]} 46. Rf1 {[%clk 0:00:07]} 46... Bc6 {[%clk
0:00:03.3]} 47. Rf7+ {[%clk 0:00:07.1]} 47... Kb6 {[%clk 0:00:04.1]} 48. Rf6
{[%clk 0:00:07.7]} 48... Kc7 {[%clk 0:00:04.7]} 49. h5 {[%clk 0:00:08.1]} 49...
Rh2 {[%clk 0:00:05]} 50. h6 {[%clk 0:00:08.3]} 50... Rh1+ {[%clk 0:00:05.9]} 51.
Ka2 {[%clk 0:00:08.4]} 51... Rh4 {[%clk 0:00:06.5]} 52. Nd5+ {[%clk 0:00:08.8]}
52... Bxd5 {[%clk 0:00:06.5]} 53. cxd5 {[%clk 0:00:09.7]} 53... a5 {[%clk
0:00:06.4]} 54. Rc6+ {[%clk 0:00:09.8]} 54... Kb7 {[%clk 0:00:06.7]} 55. Rxc5
{[%clk 0:00:10.4]} 55... Rxh6 {[%clk 0:00:07.3]} 56. Rxa5 {[%clk 0:00:10.7]}
56... Kb6 {[%clk 0:00:07.9]} 57. Ra4 {[%clk 0:00:10.8]} 57... Kc5 {[%clk
0:00:06.8]} 58. Ra5+ {[%clk 0:00:11.2]} 58... Kb6 {[%clk 0:00:07.2]} 59. b4
{[%clk 0:00:11.4]} 59... Rh3 {[%clk 0:00:06.5]} 60. Rc5 {[%clk 0:00:11.2]} 60...
Rg3 {[%clk 0:00:04.7]} 61. Kb2 {[%clk 0:00:11.5]} 61... Rf3 {[%clk 0:00:04.8]}
62. a4 {[%clk 0:00:11.7]} 62... Rd3 {[%clk 0:00:04.3]} 63. a5+ {[%clk
0:00:12.6]} 63... Ka6 {[%clk 0:00:04.4]} 64. Kc2 {[%clk 0:00:13.2]} 64... Rd4
{[%clk 0:00:03.3]} 65. Kc3 {[%clk 0:00:13.3]} 65... Rd1 {[%clk 0:00:04.1]} 66.
Rc6+ {[%clk 0:00:11.9]} 66... Kb5 {[%clk 0:00:04.1]} 67. Rb6+ {[%clk 0:00:12.2]}
67... Ka4 {[%clk 0:00:04.6]} 68. d6 {[%clk 0:00:13.1]} 68... Ka3 {[%clk
0:00:04.2]} 69. Kc4 {[%clk 0:00:13.3]} 69... Ka4 {[%clk 0:00:03.8]} 70. Kc5
{[%clk 0:00:13.2]} 70... Rd2 {[%clk 0:00:02.6]} 71. Kc6 {[%clk 0:00:13.2]} 1-0

[Event "Late-Titled-Tuesday-Blitz-May-14-2024"]
[Site "Chess.com"]
[Date "2024.05.14"]
[Round "9"]
[White "Akhayan"]
[Black "GMthekingindian"]
[Result "0-1"]
[WhiteElo "2442"]
[BlackElo "2334"]
[TimeControl "180+1"]
[EndTime "15:44:28 PDT"]
[Termination "GMthekingindian won on time"]

1. e4 {[%clk 0:03:00.9]} 1... c5 {[%clk 0:02:59.8]} 2. Nf3 {[%clk 0:03:00.9]}
2... e6 {[%clk 0:03:00]} 3. d4 {[%clk 0:02:59.9]} 3... cxd4 {[%clk 0:03:00.9]}
4. c3 {[%clk 0:03:00.2]} 4... Nf6 {[%clk 0:03:00.6]} 5. e5 {[%clk 0:02:59.5]}
5... Nd5 {[%clk 0:03:01.2]} 6. cxd4 {[%clk 0:02:59.9]} 6... d6 {[%clk
0:03:01.7]} 7. Bc4 {[%clk 0:02:59.8]} 7... Be7 {[%clk 0:03:00]} 8. O-O {[%clk
0:02:58.9]} 8... O-O {[%clk 0:02:59.8]} 9. Re1 {[%clk 0:02:59]} 9... b6 {[%clk
0:02:43.5]} 10. Bxd5 {[%clk 0:02:58.4]} 10... exd5 {[%clk 0:02:43.4]} 11. Nc3
{[%clk 0:02:59.1]} 11... Bb7 {[%clk 0:02:36.8]} 12. e6 {[%clk 0:02:54.7]} 12...
fxe6 {[%clk 0:02:34]} 13. Qe2 {[%clk 0:02:49.6]} 13... e5 {[%clk 0:02:24.9]} 14.
dxe5 {[%clk 0:02:49.1]} 14... dxe5 {[%clk 0:02:25.4]} 15. Qxe5 {[%clk
0:02:39.7]} 15... Bf6 {[%clk 0:02:20.9]} 16. Qe6+ {[%clk 0:02:39.2]} 16... Kh8
{[%clk 0:02:21.3]} 17. Be3 {[%clk 0:02:07.3]} 17... d4 {[%clk 0:01:52.6]} 18.
Rad1 {[%clk 0:02:05.7]} 18... Bxf3 {[%clk 0:01:45.2]} 19. gxf3 {[%clk
0:02:05.1]} 19... Na6 {[%clk 0:01:23.6]} 20. Qc4 {[%clk 0:01:45.9]} 20... Qc8
{[%clk 0:01:15.8]} 21. Qxc8 {[%clk 0:01:38.7]} 21... Raxc8 {[%clk 0:01:16.7]}
22. Bxd4 {[%clk 0:01:38.3]} 22... Bxd4 {[%clk 0:01:17.6]} 23. Rxd4 {[%clk
0:01:38.2]} 23... Nc5 {[%clk 0:01:10.2]} 24. Kg2 {[%clk 0:01:31]} 24... Rf6
{[%clk 0:01:04.2]} 25. Ne4 {[%clk 0:01:23.3]} 25... Rg6+ {[%clk 0:01:03.8]} 26.
Ng3 {[%clk 0:01:16.4]} 26... h6 {[%clk 0:00:56.2]} 27. Red1 {[%clk 0:01:15]}
27... Kh7 {[%clk 0:00:53.6]} 28. Rd8 {[%clk 0:01:04.1]} 28... Rc7 {[%clk
0:00:49.3]} 29. R8d6 {[%clk 0:00:55.2]} 29... Ne6 {[%clk 0:00:31.3]} 30. Kf1
{[%clk 0:00:36.2]} 30... Rc2 {[%clk 0:00:23.6]} 31. R6d2 {[%clk 0:00:35]} 31...
Rc5 {[%clk 0:00:19.6]} 32. Ne2 {[%clk 0:00:33.5]} 32... Rh5 {[%clk 0:00:19.6]}
33. Ng3 {[%clk 0:00:22.3]} 33... Rxh2 {[%clk 0:00:20]} 34. Rd6 {[%clk
0:00:20.2]} 34... Rh4 {[%clk 0:00:16.1]} 35. Re1 {[%clk 0:00:19.4]} 35... Nc5
{[%clk 0:00:11.4]} 36. Rxg6 {[%clk 0:00:19.1]} 36... Kxg6 {[%clk 0:00:12.3]} 37.
Re7 {[%clk 0:00:15.9]} 37... a5 {[%clk 0:00:12.3]} 38. Rc7 {[%clk 0:00:14.2]}
38... Rb4 {[%clk 0:00:11.7]} 39. Rc6+ {[%clk 0:00:13.6]} 39... Kh7 {[%clk
0:00:10.2]} 40. b3 {[%clk 0:00:14.1]} 40... a4 {[%clk 0:00:10.2]} 41. bxa4
{[%clk 0:00:13]} 41... Nxa4 {[%clk 0:00:08.2]} 42. Nf5 {[%clk 0:00:12.9]} 42...
Rb5 {[%clk 0:00:06.9]} 43. Nd6 {[%clk 0:00:11.2]} 43... Rb1+ {[%clk 0:00:04.3]}
44. Kg2 {[%clk 0:00:11]} 44... Rb2 {[%clk 0:00:05]} 45. Rc7 {[%clk 0:00:10.4]}
45... Rxa2 {[%clk 0:00:02.5]} 46. Nf5 {[%clk 0:00:10.8]} 46... Nc5 {[%clk
0:00:02]} 47. Rxg7+ {[%clk 0:00:10.9]} 47... Kh8 {[%clk 0:00:02.4]} 48. Rc7
{[%clk 0:00:10]} 48... Ne6 {[%clk 0:00:01.5]} 49. Rc6 {[%clk 0:00:06.7]} 49...
Ng5 {[%clk 0:00:01.1]} 50. Rxh6+ {[%clk 0:00:04.6]} 50... Nh7 {[%clk 0:00:00.9]}
51. Rxb6 {[%clk 0:00:03.8]} 51... Ra5 {[%clk 0:00:00.8]} 52. Rb8+ {[%clk
0:00:04]} 52... Nf8 {[%clk 0:00:00.6]} 53. Rb7 {[%clk 0:00:04.9]} 53... Ng6
{[%clk 0:00:00.6]} 54. Kg3 {[%clk 0:00:05.1]} 54... Rxf5 {[%clk 0:00:00.2]} 55.
Kg4 {[%clk 0:00:05.7]} 55... Rf8 {[%clk 0:00:00.6]} 56. Kg5 {[%clk 0:00:05.9]}
56... Ne5 {[%clk 0:00:01.1]} 57. f4 {[%clk 0:00:05.5]} 57... Nf7+ {[%clk
0:00:01.5]} 58. Kg6 {[%clk 0:00:05.1]} 58... Nd6 {[%clk 0:00:01.9]} 59. Rd7
{[%clk 0:00:04.3]} 59... Ne8 {[%clk 0:00:01.4]} 60. f5 {[%clk 0:00:03]} 60...
Rf6+ {[%clk 0:00:01.1]} 61. Kg5 {[%clk 0:00:03]} 61... Rf8 {[%clk 0:00:02]} 62.
Rd8 {[%clk 0:00:01.9]} 62... Kg8 {[%clk 0:00:02.3]} 63. f4 {[%clk 0:00:01.6]}
63... Kf7 {[%clk 0:00:02.4]} 64. Rd7+ {[%clk 0:00:01.2]} 64... Kg8 {[%clk
0:00:02.9]} 65. Re7 {[%clk 0:00:00.8]} 65... Nf6 {[%clk 0:00:03]} 66. Kg6 {[%clk
0:00:00.3]} 66... Ne8 {[%clk 0:00:03.5]} 0-1

[Event "Late-Titled-Tuesday-Blitz-May-14-2024"]
[Site "Chess.com"]
[Date "2024.05.14"]
[Round "9"]
[White "Kildepiotr"]
[Black "Ramil_Faizrakhmanov"]
[Result "1/2-1/2"]
[WhiteElo "2740"]
[BlackElo "2858"]
[TimeControl "180+1"]
[EndTime "15:44:30 PDT"]
[Termination "Game drawn by repetition"]

1. Nf3 {[%clk 0:03:00.9]} 1... Nf6 {[%clk 0:02:59.1]} 2. g3 {[%clk 0:03:00.9]}
2... g6 {[%clk 0:02:59.7]} 3. Bg2 {[%clk 0:03:01.5]} 3... Bg7 {[%clk 0:03:00.6]}
4. O-O {[%clk 0:03:02]} 4... O-O {[%clk 0:03:01.5]} 5. d4 {[%clk 0:03:02.2]}
5... d6 {[%clk 0:03:02]} 6. Nbd2 {[%clk 0:03:01]} 6... Nbd7 {[%clk 0:03:01]} 7.
e4 {[%clk 0:03:01.3]} 7... e5 {[%clk 0:03:01.1]} 8. dxe5 {[%clk 0:03:02.2]} 8...
dxe5 {[%clk 0:03:01]} 9. Qe2 {[%clk 0:03:02.5]} 9... c6 {[%clk 0:03:00.9]} 10.
a4 {[%clk 0:03:02]} 10... a5 {[%clk 0:03:00.2]} 11. b3 {[%clk 0:03:02.2]} 11...
Re8 {[%clk 0:02:58.2]} 12. Bb2 {[%clk 0:03:02]} 12... Qc7 {[%clk 0:02:53.5]} 13.
Nc4 {[%clk 0:03:01.7]} 13... b6 {[%clk 0:02:51.2]} 14. Rfd1 {[%clk 0:03:01.6]}
14... Ba6 {[%clk 0:02:50]} 15. Nfd2 {[%clk 0:03:00.9]} 15... Nc5 {[%clk
0:02:42.7]} 16. Qe1 {[%clk 0:03:01.1]} 16... Nfd7 {[%clk 0:02:35.9]} 17. Bh3
{[%clk 0:03:00.7]} 17... Ne6 {[%clk 0:02:32.1]} 18. Bxe6 {[%clk 0:02:59.4]}
18... Rxe6 {[%clk 0:02:33]} 19. Ne3 {[%clk 0:02:57.3]} 19... Ree8 {[%clk
0:02:23.2]} 20. Ndc4 {[%clk 0:02:50.9]} 20... Nc5 {[%clk 0:02:23.4]} 21. f3
{[%clk 0:02:50.3]} 21... Rad8 {[%clk 0:02:21.5]} 22. Rxd8 {[%clk 0:02:46.5]}
22... Rxd8 {[%clk 0:02:21.2]} 23. Rd1 {[%clk 0:02:47.4]} 23... Rxd1 {[%clk
0:02:15.3]} 24. Qxd1 {[%clk 0:02:48.3]} 24... Ne6 {[%clk 0:02:14.6]} 25. Qd6
{[%clk 0:02:38.1]} 25... Qxd6 {[%clk 0:02:13.8]} 26. Nxd6 {[%clk 0:02:39]} 26...
Bf8 {[%clk 0:02:06]} 27. Ndc4 {[%clk 0:02:27.3]} 27... Bc5 {[%clk 0:02:06.1]}
28. Kf2 {[%clk 0:02:24.4]} 28... Bxc4 {[%clk 0:01:54.4]} 29. bxc4 {[%clk
0:02:23.2]} 29... Bxe3+ {[%clk 0:01:48.1]} 30. Kxe3 {[%clk 0:02:22.9]} 30... f6
{[%clk 0:01:47.8]} 31. f4 {[%clk 0:02:16.9]} 31... exf4+ {[%clk 0:01:45.5]} 32.
gxf4 {[%clk 0:02:17.8]} 32... Kf7 {[%clk 0:01:46]} 33. Ba3 {[%clk 0:02:10.4]}
33... g5 {[%clk 0:01:42]} 34. f5 {[%clk 0:02:07.5]} 34... Nc5 {[%clk 0:01:35.8]}
35. Kd4 {[%clk 0:01:57.2]} 35... Nxa4 {[%clk 0:01:19]} 36. Bd6 {[%clk 0:01:57]}
36... Nc5 {[%clk 0:01:04]} 37. Bc7 {[%clk 0:01:37.5]} 37... Nd7 {[%clk
0:01:02.5]} 38. c5 {[%clk 0:01:37.4]} 38... bxc5+ {[%clk 0:00:53.6]} 39. Kc4
{[%clk 0:01:34.9]} 39... h5 {[%clk 0:00:47.3]} 40. Bxa5 {[%clk 0:01:32.2]} 40...
h4 {[%clk 0:00:47.6]} 41. Kd3 {[%clk 0:01:20.3]} 41... Ne5+ {[%clk 0:00:37.8]}
42. Ke2 {[%clk 0:01:20.4]} 42... g4 {[%clk 0:00:31.9]} 43. Bc7 {[%clk
0:01:04.5]} 43... Nf3 {[%clk 0:00:31]} 44. Kf2 {[%clk 0:00:59.4]} 44... Nd4
{[%clk 0:00:30.2]} 45. c4 {[%clk 0:00:57]} 45... Nf3 {[%clk 0:00:18.5]} 46. h3
{[%clk 0:00:52.4]} 46... Nd2 {[%clk 0:00:13.8]} 47. hxg4 {[%clk 0:00:51.6]}
47... Nxe4+ {[%clk 0:00:11.8]} 48. Ke3 {[%clk 0:00:50.9]} 48... Nc3 {[%clk
0:00:05.5]} 49. Bd6 {[%clk 0:00:48.4]} 49... h3 {[%clk 0:00:04.4]} 50. Kf3
{[%clk 0:00:46.8]} 50... Na4 {[%clk 0:00:03.7]} 51. Kg3 {[%clk 0:00:44.9]} 51...
Nb6 {[%clk 0:00:04.2]} 52. Kxh3 {[%clk 0:00:43.8]} 52... Nxc4 {[%clk 0:00:04.6]}
53. Bxc5 {[%clk 0:00:44.4]} 53... Nd2 {[%clk 0:00:04.5]} 54. Kg2 {[%clk
0:00:41.4]} 54... Nb3 {[%clk 0:00:04.8]} 55. Bd6 {[%clk 0:00:39.8]} 55... c5
{[%clk 0:00:05.7]} 56. Kf3 {[%clk 0:00:39.5]} 56... c4 {[%clk 0:00:06.1]} 57.
Ke3 {[%clk 0:00:39.7]} 57... Na5 {[%clk 0:00:03]} 58. Bb4 {[%clk 0:00:39]} 58...
Nc6 {[%clk 0:00:03.2]} 59. Bd6 {[%clk 0:00:35.5]} 59... Ne5 {[%clk 0:00:02.9]}
60. Bxe5 {[%clk 0:00:32]} 60... fxe5 {[%clk 0:00:03.8]} 61. g5 {[%clk
0:00:32.4]} 61... Kg7 {[%clk 0:00:03.2]} 62. Ke4 {[%clk 0:00:32.6]} 62... Kf7
{[%clk 0:00:03.6]} 63. Ke3 {[%clk 0:00:19.6]} 63... Kg7 {[%clk 0:00:03.6]} 64.
Ke4 {[%clk 0:00:18.5]} 64... Kf7 {[%clk 0:00:04]} 65. f6 {[%clk 0:00:17.3]}
65... Kg6 {[%clk 0:00:03.8]} 66. Ke3 {[%clk 0:00:13.7]} 66... Kf7 {[%clk
0:00:03.6]} 67. Ke4 {[%clk 0:00:13.7]} 67... Ke6 {[%clk 0:00:04.1]} 68. Ke3
{[%clk 0:00:13.6]} 68... Kf7 {[%clk 0:00:04.7]} 69. Ke4 {[%clk 0:00:14.1]}
1/2-1/2